Cogmind - Beta 10.2 --- EXPLORER MODE // 2021.05.26 @ 13:28:22 // Winter2019/RPGLIKE Player: H_ Result: Destroyed by Enhanced Grunt with Neutron Cannon Performance ------------- Evolutions (3) 1500 Regions Visited (14) 2800 Robots Destroyed (149) 745 Value Destroyed (7899) 7899 Prototype IDs (240) 4800 Alien Tech Used (0) 0 Bonus (5447) 5447 TOTAL SCORE: 23191 Bonus ------- High Alert Combat Kills 509 Follower Combat Kills 159 Entered Garrisons 400 Used RIF Installer 1000 Aligned with FarCom 300 Met Data Miner 300 Used Data Conduit 3000 Friendly Fire -221 Cogmind --------- Core Integrity 0/600 Matter 280/300 Energy 200/200 System Corruption 0% Temperature Cool (6) Movement Flying (23) Location -7/Data Miner Parts ------- > --- POWER (2) -------- Light Angular Momentum Engine Light Angular Momentum Engine > --- PROPULSION (5) --- Improved Cesium-ion Thruster Improved Cesium-ion Thruster Cooled VTOL Module Cooled VTOL Module Cooled VTOL Module > --- UTILITY (8) ------ Maneuvering Thrusters System Shield System Shield System Shield Relay Coupler [NC] (76) Dynamic Insulation System Improved System Backup Module Recalibrator > --- WEAPON (4) ------- AWS/Gauss Remote Datajack Great Axe > --- INVENTORY (6) ---- Transmission Jammer Relay Coupler [NC] (84) Force Rifle Heavy Gauss Cannon Peak State ------------ > --- POWER ------------ Light Angular Momentum Engine > --- PROPULSION ------- Xenon Bombardment Thruster Cooled VTOL Module Cooled VTOL Module Cooled VTOL Module Cooled VTOL Module > --- UTILITY ---------- Hacking Suite Advanced System Shield Relay Coupler [NC] Relay Coupler [Hunter] System Backup Module Improved System Backup Module Improved System Backup Module Sensor Drone Bay > --- WEAPON ----------- Force Rifle AWS/Gauss Remote Datajack > --- INVENTORY -------- Relay Coupler [NC] Dynamic Insulation System System Backup Module Recalibrator Heavy Gauss Cannon [Rating: 93] Favorites ----------- Power Light Angular Momentum Engine Engine Light Angular Momentum Engine Power Core Light Nuclear Core Propulsion Cooled VTOL Module Flight Unit Cooled VTOL Module Utility System Shield Device Improved Terrain Scanner Processor Launcher Guidance Computer Hackware System Shield Weapon AWS/Gauss Energy Gun Force Rifle Energy Cannon Advanced Beam Cannon Ballistic Gun AWS/Gauss Ballistic Cannon Heavy Gauss Cannon Launcher Missile Launcher Special Weapon Remote Datajack Slashing Weapon Great Axe Special Melee Weapon Improved Datajack Build | -11 -10 -10 -10 -9 -8 -8 -8 -8 -7 -7 -7 -7 -7 -7 ------- Run | Scr Mat Min Exi Min Mat Gar Mat Gar Fac Was Fac Low Low Dat Slots Evolved 15 | . . . 5 . 4 2 . 1 1 . 2 . . . Power 1 | . . . . . . . . . . . 1 . . . Propulsion 4 | . . . 1 . . 2 . . . . 1 . . . Utility 7 | . . . 3 . 2 . . 1 1 . . . . . Weapon 3 | . . . 1 . 2 . . . . . . . . . Parts Attached 187 | 4 . 11 3 8 3 14 22 16 27 1 58 18 . 2 Power 10 | . . . . 1 1 . 2 . 2 . 4 . . . Engine 7 | . . . . 1 . . 1 . 1 . 4 . . . Core 3 | . . . . . 1 . 1 . 1 . . . . . Reactor . | . . . . . . . . . . . . . . . Propulsion 23 | . . 2 . . . 7 3 . 5 . 6 . . . Treads . | . . . . . . . . . . . . . . . Leg . | . . . . . . . . . . . . . . . Wheel . | . . . . . . . . . . . . . . . Hover . | . . . . . . . . . . . . . . . Flight 23 | . . 2 . . . 7 3 . 5 . 6 . . . Utility 90 | 2 . 3 1 5 . 5 8 13 14 1 27 11 . . Device 74 | 1 . 3 1 3 . 3 6 12 9 1 24 11 . . Storage . | . . . . . . . . . . . . . . . Processor 4 | 1 . . . 2 . . . 1 . . . . . . Hackware 12 | . . . . . . 2 2 . 5 . 3 . . . Protection . | . . . . . . . . . . . . . . . Artifact . | . . . . . . . . . . . . . . . Weapon 64 | 2 . 6 2 2 2 2 9 3 6 . 21 7 . 2 Energy Gun 14 | 1 . 1 . 1 . 1 2 . 2 . 5 1 . . Energy Cannon 1 | . . . . . 1 . . . . . . . . . Ballistic Gun 10 | . . . 1 . 1 . 3 2 1 . 1 1 . . Ballistic Cannon 15 | . . . . . . . . . 1 . 13 1 . . Launcher 11 | . . 5 . 1 . 1 3 1 . . . . . . Special Weapon 7 | 1 . . 1 . . . 1 . 1 . 1 1 . 1 Impact Weapon . | . . . . . . . . . . . . . . . Slashing Weapon 5 | . . . . . . . . . . . 1 3 . 1 Piercing Weapon . | . . . . . . . . . . . . . . . Special Melee Weapon 1 | . . . . . . . . . 1 . . . . . Unidentified Prototypes 6 | . . 1 . . 1 . 2 . 1 . 1 . . . Parts Lost 1 | . . 1 . . . . . . . . . . . . Power . | . . . . . . . . . . . . . . . Propulsion 1 | . . 1 . . . . . . . . . . . . Utility . | . . . . . . . . . . . . . . . Weapon . | . . . . . . . . . . . . . . . Highest Loss Streak 1 | . . 1 . . . . . . . . . . . . Average Slot Usage (%) 78 | . 50 63 31 48 45 72 91 92 93 94 87 90 89 89 Engine 3 | . . . . 1 3 . 1 . 2 5 8 10 10 10 Core 2 | . . . . . 3 6 4 6 2 . . . . . Flight 19 | . . 16 . . . 21 26 25 23 23 25 26 26 26 Device 17 | . 25 24 17 18 12 9 14 15 17 17 18 20 21 21 Processor 3 | . . . . 13 15 13 5 4 1 . . . . . Hackware 14 | . . . . . . 2 18 19 27 29 21 21 21 21 Energy Gun 3 | . . 3 . 3 1 4 1 . 3 5 4 4 5 2 Ballistic Gun 5 | . . . 8 7 5 6 11 12 6 5 1 3 5 5 Launcher 3 | . . 16 5 3 1 6 4 6 . . . . . . Special Weapon 2 | . 25 1 . . . . 1 . 3 5 4 1 . . Naked Turns . | . . . . . . . . . . . . . . . Heaviest Build 47 | 3 2 17 25 21 23 40 28 41 32 32 47 43 39 39 Greatest Support 47 | 3 3 4 13 13 13 26 31 31 38 38 41 47 41 41 Greatest Overweight (x) 5 | . . 5 1 1 1 2 . 1 . . 1 1 . . Average Overweight (x) . | . . . . . 1 . . . . . . . . . Largest Inventory Capacity 6 | . . 2 4 4 4 4 5 5 6 6 6 6 6 6 Average Capacity 4 | . . 1 3 4 4 4 4 5 5 6 6 6 6 6 Most Carried 6 | . . 2 3 4 4 4 5 5 6 6 6 6 5 5 Average Carried 3 | . . . . 2 3 2 4 4 4 5 5 5 5 4 Final Capacity 6 | . . 2 4 4 4 4 5 5 6 6 6 6 6 6 Final Carried 6 | . . 2 1 4 3 4 4 5 5 6 6 5 5 4 Class Distribution -------------------- 25% | Wizard-Sprinter 20% | Wizard-Scout 18% | Hacker-Mutant 11% | Hacker-Scout 10% | Hacker-Skirmisher 4% | Wizard-Skirmisher 3% | Wizard-Ninja 3% | Wizard-Mutant Dominant Class ---------------- Hacker-Mutant | -10/Materials Hacker-Mutant | -10/Mines Hacker-Mutant | -10/Exiles Hacker-Skirmisher | -9/Mines Hacker-Skirmisher | -8/Materials Hacker-Scout | -8/Garrison Wizard-Scout | -8/Materials Wizard-Scout | -8/Garrison Wizard-Sprinter | -7/Factory Wizard-Scout | -7/Waste Wizard-Sprinter | -7/Factory Wizard-Sprinter | -7/Lower Caves Wizard-Sprinter | -7/Lower Caves Wizard-Sprinter | -7/Data Miner Resources | -11 -10 -10 -10 -9 -8 -8 -8 -8 -7 -7 -7 -7 -7 -7 ----------- Run | Scr Mat Min Exi Min Mat Gar Mat Gar Fac Was Fac Low Low Dat Matter Collected 3353 | 240 . 310 . 71 49 379 586 639 246 34 619 180 . . Remotely . | . . . . . . . . . . . . . . . Salvage Created 5330 | 127 . 184 . 15 279 754 885 1016 636 . 1118 174 . 142 Parts 351 | 7 . 8 . 4 16 37 88 55 34 . 87 13 . 2 Haulers Intercepted 5 | . . . . . . . 5 . . . . . . . Recyclers Shooed . | . . . . . . . . . . . . . . . Parts Field Recycled . | . . . . . . . . . . . . . . . Retrieved Matter . | . . . . . . . . . . . . . . . Parts Self-Destructed . | . . . . . . . . . . . . . . . Prevented . | . . . . . . . . . . . . . . . Kills | -11 -10 -10 -10 -9 -8 -8 -8 -8 -7 -7 -7 -7 -7 -7 ------- Run | Scr Mat Min Exi Min Mat Gar Mat Gar Fac Was Fac Low Low Dat Combat Hostiles Destroyed 123 | . 1 8 . 2 3 23 19 26 9 . 25 6 . 1 Melee 12 | . . . . . . . . . . . 7 4 . 1 Guns 84 | . . 2 . 2 3 19 17 21 9 . 9 2 . . Cannons 7 | . 1 . . . . . 1 . . . 5 . . . AOE 19 | . . 6 . . . 4 . 5 . . 4 . . . Classes Destroyed 17 | 2 1 1 . 1 6 1 2 1 1 . 1 . . . Worker 2 | . . . . . 1 . 1 . . . . . . . Builder 4 | . . . . . 1 . 1 . 1 . 1 . . . Tunneler 3 | 2 . 1 . . . . . . . . . . . . Hauler 5 | . . . . . . . 5 . . . . . . . Recycler 4 | 1 . 2 . . . . . . 1 . . . . . Mechanic 1 | . . . . . . . 1 . . . . . . . Operator 1 | . . . . . . . . . . . 1 . . . Watcher 10 | . . . . . 2 . 5 . 2 . 1 . . . Swarmer 18 | . . . . 2 . 7 . 8 . . . 1 . . Grunt 53 | . 1 2 . . . 11 7 10 5 . 13 4 . . Brawler 5 | . . . . . 1 . 2 2 . . . . . . Duelist 5 | . . . . . . 2 1 . . . 2 . . . Sentry 23 | . . . . . 1 3 8 3 1 . 6 1 . . Specialist 2 | . . . . . . . . 2 . . . . . . Hunter 5 | . . . . . 1 . 1 1 1 . 1 . . . Programmer 5 | . . . . . . . . . 2 . 3 . . . Enhanced Grunt 1 | . . . . . . . . . . . . . . 1 Assembled 5 | . . 5 . . . . . . . . . . . . Thug 1 | . . . . 1 . . . . . . . . . . Best Kill Streak 13 | 2 1 2 . 2 4 8 5 13 8 . 6 6 . 1 Combat Bots Only 13 | . 1 2 . 2 2 8 4 13 6 . 6 6 . 1 Max Kills in Single Turn 2 | 1 1 2 . 1 1 2 2 2 1 . 2 1 . 1 Gunslinging . | . . . . . . . . . . . . . . . Exploded 2 | . . 2 . . . 2 . 2 . . 2 . . . Melee 1 | . . . . . . . . . . . 1 1 . 1 Uniques/NPCs Destroyed 1 | . . 1 . . . . . . . . . . . . YI-UF0 (-10/Mines) Combat | -11 -10 -10 -10 -9 -8 -8 -8 -8 -7 -7 -7 -7 -7 -7 -------- Run | Scr Mat Min Exi Min Mat Gar Mat Gar Fac Was Fac Low Low Dat Damage Taken 3576 | . 28 431 . 27 . 201 510 246 156 . 926 326 94 631 Core 2884 | . 26 364 . 20 . 158 413 198 117 . 734 267 73 514 Absorbed by Shields 14 | . . . . . . 8 . . . . 6 . . . Redirected to Core 2195 | . 5 217 . 17 . 139 314 149 106 . 544 202 73 429 Core Remaining (%) 91 | 100 . . . 100 . . . 73 . . . . . . Volleys Fired 426 | 13 3 31 . 5 . 25 139 94 25 . 86 5 . . Largest 2 | 1 1 1 . 1 . 1 1 1 1 . 2 1 . . Hottest 141 | 40 100 65 . 55 . 55 55 36 80 . 141 80 . . Shots Fired 612 | 13 3 31 . 11 18 84 146 140 47 8 89 19 . 3 Gun 510 | 13 . 11 . 11 18 67 140 124 43 8 53 19 . 3 Cannon 25 | . . . . . . . . . . . 25 . . . Launcher 55 | . . 20 . . . 17 2 16 . . . . . . Special 22 | . 3 . . . . . 4 . 4 . 11 . . . Kinetic 409 | . . . . 6 18 59 128 124 22 8 27 14 . 3 Thermal 95 | . 3 11 . . . . 4 . 21 . 51 5 . . Explosive 55 | . . 20 . . . 17 2 16 . . . . . . Electromagnetic 38 | 13 . . . 5 . 8 12 . . . . . . . Robot Hit Streak 50 | 13 16 30 . 13 31 47 50 49 48 16 42 19 . 22 Robot Miss Streak 2 | . . 2 . . . 1 1 1 1 . 2 . . . Penetration Max . | . . . . . . . . . . . . . . . Secondary Targets . | . . . . . . . . . . . . . . . Autonomous 194 | . . . . 6 18 59 8 47 23 9 3 17 . 4 Shots Hit Robots 564 | 13 3 16 . 11 18 61 139 122 48 8 86 27 . 12 Core Hits 263 | 4 1 21 . 4 9 33 54 72 17 . 37 8 . 3 Critical Hits 18 | . . . . . . 1 1 2 3 1 9 1 . . Critical Kills 6 | . . . . . . . . . 2 . 4 . . . Critical Parts Destroyed 10 | . . . . . . 1 1 2 1 . 4 1 . . Melee Attacks 41 | . . . . . . . . . 5 . 16 11 . 9 Impact . | . . . . . . . . . . . . . . . Slashing 36 | . . . . . . . . . . . 16 11 . 9 Piercing . | . . . . . . . . . . . . . . . Sneak Attacks 6 | . . . . . . . . . 5 . . . . 1 Combat Hostiles 1 | . . . . . . . . . 1 . . . . . Follow-up Attacks . | . . . . . . . . . . . . . . . Damage Inflicted 16595 | 225 72 615 . 262 576 2335 2766 3079 1058 223 3887 903 . 594 Guns 10821 | 182 . 150 . 262 576 1705 2553 2229 1058 223 1297 513 . 73 Cannons 518 | . . . . . . . . . . . 518 . . . Explosions 3429 | 43 . 465 . . . 630 165 850 . . 1276 . . . Melee 1707 | . . . . . . . . . . . 796 390 . 521 Ramming . | . . . . . . . . . . . . . . . Kinetic 8803 | . . . . 156 576 1648 2327 2229 569 223 590 412 . 73 Thermal 2758 | 43 72 150 . . . . 48 . 489 . 1855 101 . . Explosive 2756 | . . 465 . . . 630 165 850 . . 646 . . . Electromagnetic 571 | 182 . . . 106 . 57 226 . . . . . . . Impact . | . . . . . . . . . . . . . . . Slashing 1707 | . . . . . . . . . . . 796 390 . 521 Piercing . | . . . . . . . . . . . . . . . Highest Corruption 5 | . . . . . . . . . 1 5 5 1 . . Average Corruption 2 | . . . . . . . . . 1 5 3 1 . . Corruption Purged 8 | . . . . . . . . . 1 . 6 1 . . Effects 11 | . . . . . . . . . 2 . 9 . . . Message Errors 2 | . . . . . . . . . . . 2 . . . Matter Fused 2 | . . . . . . . . . . . 2 . . . Heat Flow Errors 2 | . . . . . . . . . . . 2 . . . Data Loss (minor) 2 | . . . . . . . . . 1 . 1 . . . Data Loss (major) 2 | . . . . . . . . . . . 2 . . . Targeting Errors 1 | . . . . . . . . . 1 . . . . . Overload Shots . | . . . . . . . . . . . . . . . Overflow Damage 344 | 6 . 4 . . . 13 21 . . . 266 14 . 20 Projectiles 8 | . . . . . . . . . . . 8 . . . Explosions 300 | 6 . 4 . . . 13 21 . . . 256 . . . Melee 36 | . . . . . . . . . . . 2 14 . 20 Knockbacks 1 | . . . . . . . . . . . 1 . . . Impact . | . . . . . . . . . . . . . . . Kinetic 1 | . . . . . . . . . . . 1 . . . Secondary . | . . . . . . . . . . . . . . . Self-Inflicted Damage 44 | . . 14 . . . 30 . . . . . . . . Shots 3 | . . 2 . . . 1 . . . . . . . . Rammed . | . . . . . . . . . . . . . . . Targets Rammed . | . . . . . . . . . . . . . . . Kicked . | . . . . . . . . . . . . . . . Crushed . | . . . . . . . . . . . . . . . Highest Temperature 314 | . 24 70 . 23 . 4 9 2 146 . 314 114 12 2 Average Temperature 58 | . 17 30 . 21 . 3 2 1 46 . 82 26 5 1 Received Heat Transfer 1427 | . 24 29 . . . 135 324 108 75 . 438 156 12 126 Effects 2 | . . . . . . . . . . . 2 . . . Energy Bleed 1 | . . . . . . . . . . . 1 . . . Interference 1 | . . . . . . . . . . . 1 . . . Siege Activations . | . . . . . . . . . . . . . . . Robots Corrupted 2 | . . . . 1 . . 1 . . . . . . . Combat Hostiles 1 | . . . . . . . 1 . . . . . . . Parts Fried 4 | 1 . . . 1 . . 2 . . . . . . . Impact Corruptions . | . . . . . . . . . . . . . . . Robots Melted . | . . . . . . . . . . . . . . . Combat Hostiles . | . . . . . . . . . . . . . . . Parts Melted 3 | . . . . . . . . . . . 3 . . . Heat Transferred 3658 | 50 150 370 . . . . 148 . 703 . 2089 148 . . Parts Sabotaged . | . . . . . . . . . . . . . . . Parts Stolen . | . . . . . . . . . . . . . . . Parts Stripped . | . . . . . . . . . . . . . . . Power Chain Reactions 1 | 1 . . . . . . . . . . . . . . Missiles Intercepted . | . . . . . . . . . . . . . . . Alert | -11 -10 -10 -10 -9 -8 -8 -8 -8 -7 -7 -7 -7 -7 -7 ------- Run | Scr Mat Min Exi Min Mat Gar Mat Gar Fac Was Fac Low Low Dat Peak Influence 1155 | 15 45 117 . 58 137 1155 838 1013 394 45 575 . . . Initial 412 | . 7 12 . . . 67 412 31 394 . 24 . . . Average 245 | 8 14 44 . 4 79 690 328 623 131 18 151 . . . Maximum Alert Level 4 | . . . . . . 4 3 3 1 . 2 . . . Low Security (%) 63 | 100 100 100 . 100 100 15 44 13 71 100 70 . . . Level 1 15 | . . . . . . 11 8 14 28 . 26 . . . Level 2 7 | . . . . . . 9 33 17 . . 3 . . . Level 3 12 | . . . . . . 52 13 53 . . . . . . Level 4 1 | . . . . . . 11 . . . . . . . . Level 5 . | . . . . . . . . . . . . . . . High Security . | . . . . . . . . . . . . . . . Max Security . | . . . . . . . . . . . . . . . Squads Dispatched 33 | . 1 . . . . . 4 . 7 . 21 . . . Investigation 22 | . 1 . . . . . 4 . 5 . 12 . . . Extermination 4 | . . . . . . . . . 2 . 2 . . . Reinforcement 4 | . . . . . . . . . . . 4 . . . Assault . | . . . . . . . . . . . . . . . Garrison 3 | . . . . . . . . . . . 3 . . . Intercept . | . . . . . . . . . . . . . . . Construction Impeded 2 | . . . . . . . . . . . 2 . . . Haulers Reinforced . | . . . . . . . . . . . . . . . Stealth | -11 -10 -10 -10 -9 -8 -8 -8 -8 -7 -7 -7 -7 -7 -7 --------- Run | Scr Mat Min Exi Min Mat Gar Mat Gar Fac Was Fac Low Low Dat Distress Signals 7 | . . . . . 1 . 2 . 1 . 3 . . . Communications Jammed 18 | . . . . . . . 7 . 2 . 9 . . . Distress Signals 18 | . . . . . . . 7 . 2 . 9 . . . Times Spotted 200 | . 2 31 . 2 7 24 29 23 15 6 43 13 1 4 Peak Tracking Total 7 | . 1 7 . 2 2 5 3 4 3 6 6 7 1 4 Tactical Retreats 19 | . . 10 . . . 1 1 . . . 3 3 1 . Traps | -11 -10 -10 -10 -9 -8 -8 -8 -8 -7 -7 -7 -7 -7 -7 ------- Run | Scr Mat Min Exi Min Mat Gar Mat Gar Fac Was Fac Low Low Dat Traps Triggered 15 | . . . . . 1 2 . . 5 . 7 . . . Indirectly . | . . . . . . . . . . . . . . . Trap Hack Attempts . | . . . . . . . . . . . . . . . Triggered . | . . . . . . . . . . . . . . . Disarmed . | . . . . . . . . . . . . . . . Reprogrammed 50 | . . . . . . . 13 . 12 . 25 . . . Reused 7 | . . 1 . . . . . . . . 6 . . . Traps Extracted . | . . . . . . . . . . . . . . . Installed 4 | . . 4 . . . . . . . . . . . . Triggered 6 | . . . . . . . . . . . 6 . . . Machines | -11 -10 -10 -10 -9 -8 -8 -8 -8 -7 -7 -7 -7 -7 -7 ---------- Run | Scr Mat Min Exi Min Mat Gar Mat Gar Fac Was Fac Low Low Dat Machines Disabled 43 | . . 1 . 2 . 8 . 8 1 . 22 1 . . Max in Single Turn 2 | . . 1 . 1 . 1 . 2 1 . 2 1 . . Garrison Access 2 | . . . . . . . . . 2 . . . . . Garrison Relay 8 | . . . . . . 4 . 4 . . . . . . Phase Generator 2 | . . . . . . 1 . 1 . . . . . . Machines Sabotaged 1 | . . . . . . . . . . . 1 . . . Garrisons Compromised . | . . . . . . . . . . . . . . . Overloaded Fab Kills . | . . . . . . . . . . . . . . . Fab Network Shutdowns . | . . . . . . . . . . . . . . . Hacking | -11 -10 -10 -10 -9 -8 -8 -8 -8 -7 -7 -7 -7 -7 -7 --------- Run | Scr Mat Min Exi Min Mat Gar Mat Gar Fac Was Fac Low Low Dat Machines Accessed 86 | . 1 3 1 1 1 . 16 . 22 . 35 1 1 4 Terminals 43 | . 1 2 . . . . 11 . 10 . 18 1 . . Fabricators 6 | . . . . . . . . . 2 . 4 . . . Repair Stations 4 | . . . . . . . 1 . 2 . 1 . . . Recycling Units 12 | . . . . . . . 2 . 4 . 6 . . . Scanalyzers 7 | . . . . . . . 1 . 2 . 4 . . . Garrison Access 6 | . . . . . 1 . 1 . 2 . 2 . . . Total Hacks 708 | . 3 7 1 1 1 . 146 . 183 . 336 5 1 24 Successful 590 | . 1 3 1 1 1 . 133 . 144 . 276 5 1 24 Failed 118 | . 2 4 . . . . 13 . 39 . 60 . . . Catastrophic 3 | . 1 . . . . . 1 . . . 1 . . . Database Lockouts . | . . . . . . . . . . . . . . . Manual 470 | . 2 4 1 . . . 133 . 112 . 218 . . . Terminals 525 | . 3 6 . . . . 122 . 131 . 258 5 . . Fabricators 40 | . . . . . . . . . 16 . 24 . . . Repair Stations 9 | . . . . . . . 1 . 6 . 2 . . . Recycling Units 48 | . . . . . . . 11 . 12 . 25 . . . Scanalyzers 30 | . . . . . . . 8 . 6 . 16 . . . Garrison Access 28 | . . . . . 1 . 4 . 12 . 11 . . . Terminal Hacks 372 | . 1 3 1 1 . . 83 . 75 . 178 5 1 24 Record 23 | . . . . . . . . . . . 7 5 . 11 Part Schematic 90 | . . . . . . . 24 . 22 . 38 . . 6 Robot Schematic 20 | . . . . . . . 1 . 1 . 14 . . 4 Robot Analysis 34 | . . . . . . . 25 . 5 . 4 . . . Prototype ID Bank 89 | . . . . . . . 4 . 18 . 64 . . 3 Open Door 3 | . . 1 . 1 . . . . . . . . 1 . Level Access Points 3 | . . 1 . . . . . . 1 . 1 . . . Branch Access Points 7 | . . 1 . . . . 2 . 2 . 2 . . . Emergency Access Points 8 | . . . . . . . 3 . 2 . 3 . . . Machine Index 2 | . . . . . . . . . 1 . 1 . . . Terminal Index 3 | . . . . . . . 1 . 1 . 1 . . . Repair Station Index 1 | . . . . . . . . . 1 . . . . . Recycling Unit Index 3 | . . . . . . . 1 . 1 . 1 . . . Garrison Index 2 | . . . . . . . 1 . 1 . . . . . Unreport Threat 13 | . . . . . . . 5 . 3 . 5 . . . Locate Traps 12 | . . . . . . . . . 3 . 9 . . . Reprogram Traps 15 | . . . . . . . 5 . 2 . 8 . . . Dispatch Records 5 | . . . . . . . 1 . 2 . 2 . . . Transport Status 1 | . . . . . . . . . . . 1 . . . Recall Investigation 1 | . . . . . . . . . . . 1 . . . Recall Extermination 1 | . . . . . . . . . . . 1 . . . Recall Reinforcements 2 | . . . . . . . 1 . . . 1 . . . Hauler Manifests 4 | . . . . . . . 1 . 1 . 2 . . . Registered Components 3 | . . . . . . . 1 . 1 . 1 . . . Registered Prototypes 2 | . . . . . . . 1 . 1 . . . . . Zone Layout 24 | . 1 . . . . . 6 . 6 . 11 . . . EX-Prototype ID Bank 1 | . . . 1 . . . . . . . . . . . Fabricator Hacks 22 | . . . . . . . . . 11 . 11 . . . Network Status 2 | . . . . . . . . . 1 . 1 . . . Load Schematic 6 | . . . . . . . . . 2 . 4 . . . Build 14 | . . . . . . . . . 8 . 6 . . . Repair Station Hacks 4 | . . . . . . . . . 2 . 2 . . . Scan Component 2 | . . . . . . . . . 1 . 1 . . . Repair 2 | . . . . . . . . . 1 . 1 . . . Recycling Unit Hacks 27 | . . . . . . . 7 . 7 . 13 . . . Process 4 | . . . . . . . 1 . 1 . 2 . . . Report Inventory 14 | . . . . . . . 4 . 3 . 7 . . . Retrieve Matter 4 | . . . . . . . 1 . 1 . 2 . . . Retrieve Components 5 | . . . . . . . 1 . 2 . 2 . . . Scanalyzer 22 | . . . . . . . 7 . 4 . 11 . . . Insert Component 9 | . . . . . . . 2 . 2 . 5 . . . Analyze 13 | . . . . . . . 5 . 2 . 6 . . . Garrison Access Hacks 6 | . . . . . 1 . 1 . 4 . . . . . Unlock Access 2 | . . . . . 1 . 1 . . . . . . . Seal Access 2 | . . . . . . . . . 2 . . . . . Coupler Status 2 | . . . . . . . . . 2 . . . . . Unauthorized Hacks 137 | . . . . . . . 35 . 41 . 61 . . . Terminals 74 | . . . . . . . 26 . 21 . 27 . . . Track 15 | . . . . . . . 7 . 4 . 4 . . . Assimilate 7 | . . . . . . . 2 . 4 . 1 . . . Botnet 35 | . . . . . . . 9 . 10 . 16 . . . Detonate 3 | . . . . . . . 1 . . . 2 . . . Disrupt 5 | . . . . . . . 4 . 1 . . . . . Operators 7 | . . . . . . . 2 . 2 . 3 . . . Sabotage 2 | . . . . . . . 1 . . . 1 . . . Fabricators 15 | . . . . . . . . . 4 . 11 . . . Report 4 | . . . . . . . . . 1 . 3 . . . Prioritize 4 | . . . . . . . . . 1 . 3 . . . Siphon 4 | . . . . . . . . . 1 . 3 . . . Haulers 3 | . . . . . . . . . 1 . 2 . . . Repair Stations 3 | . . . . . . . 1 . 2 . . . . . Mechanics 3 | . . . . . . . 1 . 2 . . . . . Recycling Units 19 | . . . . . . . 4 . 5 . 10 . . . Monitor 4 | . . . . . . . 1 . 1 . 2 . . . Recyclers 4 | . . . . . . . 1 . 1 . 2 . . . Tunnel 11 | . . . . . . . 2 . 3 . 6 . . . Scanalyzers 7 | . . . . . . . 1 . 2 . 4 . . . Extract 7 | . . . . . . . 1 . 2 . 4 . . . Garrison Access 19 | . . . . . . . 3 . 7 . 9 . . . Broadcast 5 | . . . . . . . 1 . 2 . 2 . . . Reprogram 7 | . . . . . . . 1 . 3 . 3 . . . Intercept 3 | . . . . . . . . . 1 . 2 . . . Watchers 4 | . . . . . . . 1 . 1 . 2 . . . Data Cores Recovered . | . . . . . . . . . . . . . . . Used . | . . . . . . . . . . . . . . . Hacking Detections 53 | . 1 2 . . . . 12 . 14 . 24 . . . Full Trace Events 3 | . 1 . . . . . 1 . . . 1 . . . Feedback Events . | . . . . . . . . . . . . . . . Feedback Blocked . | . . . . . . . . . . . . . . . Robot Schematics Acquired 20 | . . . . . . . 1 . 1 . 14 . . 4 Robots Built . | . . . . . . . . . . . . . . . Matter . | . . . . . . . . . . . . . . . Time . | . . . . . . . . . . . . . . . Total Robot Build Rating . | . . . . . . . . . . . . . . . Part Schematics Acquired 114 | . . . . . . . 27 . 28 . 53 . . 6 Parts Built 12 | . . . . . . . . . 5 . 7 . . . Matter 1514 | . . . . . . . . . 915 . 599 . . . Time 282 | . . . . . . . . . 158 . 124 . . . Total Part Build Rating 54 | . . . . . . . . . 22 . 32 . . . Parts Repaired 2 | . . . . . . . . . 1 . 1 . . . Time 47 | . . . . . . . . . 16 . 31 . . . Parts Recycled . | . . . . . . . . . . . . . . . Recycled Matter 945 | . . . . . . . 194 . 324 . 427 . . . Retrieved Matter 959 | . . . . . . . 208 . 324 . 427 . . . Retrieved Components 20 | . . . . . . . 2 . 12 . 6 . . . Parts Scanalyzed 9 | . . . . . . . 2 . 2 . 5 . . . Part Schematics Acquired 9 | . . . . . . . 2 . 2 . 5 . . . Parts Damaged 1 | . . . . . . . . . 1 . . . . . Bothacking | -11 -10 -10 -10 -9 -8 -8 -8 -8 -7 -7 -7 -7 -7 -7 ------------ Run | Scr Mat Min Exi Min Mat Gar Mat Gar Fac Was Fac Low Low Dat Used RIF Installer 2 | . . . . . . 1 . 1 . . . . . . Watcher Feeds 1 | . . . . . . . . 1 . . . . . . Robots Hacked 11 | . . . . . . . . . 7 . 4 . . . Non-combat 10 | . . . . . . . . . 6 . 4 . . . Combat 1 | . . . . . . . . . 1 . . . . . Robot Hacks Applied 15 | . . . . . . . . . 8 . 7 . . . parse_system 2 | . . . . . . . . . 1 . 1 . . . no_distress 5 | . . . . . . . . . 3 . 2 . . . find_chute 1 | . . . . . . . . . 1 . . . . . drop_inventory 3 | . . . . . . . . . . . 3 . . . ignore_parts 1 | . . . . . . . . . . . 1 . . . find_station 1 | . . . . . . . . . 1 . . . . . formatsys_low 1 | . . . . . . . . . 1 . . . . . formatsys_high 1 | . . . . . . . . . 1 . . . . . Relay Couplers Released 11 | . . . . . . 5 . 6 . . . . . . Machine Destruction 11 | . . . . . . 5 . 6 . . . . . . Attached 3 | . . . . . . 2 . . 1 . . . . . Robots Rewired 1 | . . . . . . . . . 1 . . . . . Allies Hacked . | . . . . . . . . . . . . . . . Hacks Repelled . | . . . . . . . . . . . . . . . Allies | -11 -10 -10 -10 -9 -8 -8 -8 -8 -7 -7 -7 -7 -7 -7 -------- Run | Scr Mat Min Exi Min Mat Gar Mat Gar Fac Was Fac Low Low Dat Total Allies 15 | . . . . 3 . . 1 . 7 . 4 . . . Largest Group 7 | . . . . 3 3 2 1 . 6 . 7 . . . Highest-Rated Group 126 | . . . . 40 40 32 10 . 125 . 126 . . . Highest-Rated Ally 26 | . . . . 16 16 16 10 . 26 . 26 . . . Total Orders 47 | . . 4 2 3 . 10 3 6 6 . 6 7 . . STAY 6 | . . . . . . . 2 . 3 . 1 . . . ROAM 1 | . . . . . . . . . . . . 1 . . FOLLOW 4 | . . . . . . . 1 . 2 . 1 . . . EXPLORE 26 | . . 3 1 3 . 7 . 4 1 . 3 4 . . RETURN 10 | . . 1 1 . . 3 . 2 . . 1 2 . . Ally Attacks 93 | . . . . . 10 26 . . 5 . 52 . . . Total Damage 1668 | . . . . . 90 239 . . 71 . 1268 . . . Kills 12 | . . . . . . 2 . . 1 . 9 . . . Allies Corrupted 3 | . . 3 . . . . . . . . . . . . Allies Melted . | . . . . . . . . . . . . . . . Turrets Deployed 3 | . . . 3 . . . . . . . . . . . Intel | -11 -10 -10 -10 -9 -8 -8 -8 -8 -7 -7 -7 -7 -7 -7 ------- Run | Scr Mat Min Exi Min Mat Gar Mat Gar Fac Was Fac Low Low Dat Robot Analysis Total 149 | . . . . . . . 25 . 5 . 4 . . 115 Derelict Logs Recovered 4 | . . 1 . 1 . . . . . . . 1 1 . Drone Launches 194 | . . 20 16 4 . 61 . 48 1 . 24 20 . . Drone Recoveries 177 | . . 16 16 3 . 60 . 45 . . 20 17 . . Exploration | -11 -10 -10 -10 -9 -8 -8 -8 -8 -7 -7 -7 -7 -7 -7 ------------- Run | Scr Mat Min Exi Min Mat Gar Mat Gar Fac Was Fac Low Low Dat Turns Passed 9995 | 87 45 1021 565 666 252 1011 1077 742 1633 38 1960 717 132 49 Spaces Moved 15208 | 44 65 1654 636 657 207 943 1620 745 3024 133 3361 1456 571 92 Core 2028 | 44 65 393 636 657 207 26 . . . . . . . . Treads . | . . . . . . . . . . . . . . . Legs . | . . . . . . . . . . . . . . . Wheels . | . . . . . . . . . . . . . . . Hover . | . . . . . . . . . . . . . . . Flight 13180 | . . 1261 . . . 917 1620 745 3024 133 3361 1456 571 92 Fastest Speed 14 | 50 50 40 50 50 100 31 31 31 17 17 23 14 23 23 Average Speed 34 | 50 50 46 59 70 100 38 31 37 30 26 24 23 23 23 Slowest Speed 300 | 50 50 300 100 100 100 150 31 111 31 27 95 88 23 23 Overloaded Moves 44 | . . . . . . . . . 26 2 1 15 . . Propulsion Burnouts . | . . . . . . . . . . . . . . . Robots Hopped 49 | . . 1 3 . . . 15 . 9 . 21 . . . Cave-ins Triggered . | . . . . . . . . . . . . . . . Exploration Rate (%) 74 | 3 24 99 93 99 25 97 91 98 52 91 91 99 78 80 Regions Visited 14 Branch Regions 6 Pre-discovered Areas 28 | . . 2 . . . . 2 . 3 . 6 1 1 13 Known Exits Taken 10 | 1 1 1 1 1 1 . 1 . . . 1 1 1 . Unknown Exits Taken . | . . . . . . . . . . . . . . . Scrap Searched 7 | . . . . 2 . . . . . . . 4 1 . Spaces Dug 95 | . . 50 . . . 10 11 12 . . 12 . . . Terrain Destroyed 860 | 2 . 150 . . 13 275 24 180 14 . 190 11 . 1 Melee 1 | . . . . . . . . . . . 1 . . . Projectile 62 | . . . . . 13 5 1 3 14 . 14 11 . 1 AOE 797 | 2 . 150 . . . 270 23 177 . . 175 . . . Terrain Rammed . | . . . . . . . . . . . . . . . Walls Destroyed . | . . . . . . . . . . . . . . . Machines Disabled . | . . . . . . . . . . . . . . . Actions | -11 -10 -10 -10 -9 -8 -8 -8 -8 -7 -7 -7 -7 -7 -7 --------- Run | Scr Mat Min Exi Min Mat Gar Mat Gar Fac Was Fac Low Low Dat Total 19435 | 94 67 1871 819 856 254 1560 2090 1132 3709 135 4361 1813 570 104 Wait 3137 | 32 . 153 176 165 34 533 265 242 559 . 702 276 . . Move 15102 | 43 64 1651 629 656 207 942 1592 743 3008 132 3318 1455 570 92 Hop 44 | . . 1 3 . . . 12 . 7 . 21 . . . Pick Up 61 | . . 2 3 6 1 11 8 2 9 1 14 4 . . Fast Attach 58 | 4 . 5 . 3 2 1 13 4 10 . 13 3 . . Attach 72 | . . 3 3 5 1 10 6 2 2 1 28 9 . 2 Detach 48 | . . 5 1 2 2 3 4 1 1 1 21 6 . 1 Swap 57 | . . 3 . . . 3 3 10 15 . 17 6 . . Drop 103 | 2 . 5 4 2 5 3 22 4 19 . 29 8 . . Fire 426 | 13 3 31 . 5 . 25 139 94 25 . 86 5 . . Melee 41 | . . . . . . . . . 5 . 16 11 . 9 Ram . | . . . . . . . . . . . . . . . Kick . | . . . . . . . . . . . . . . . Crush . | . . . . . . . . . . . . . . . Escape Stasis 138 | . . . . . . 18 . 20 38 . 62 . . . Rewire 2 | . . . . . . . . . 2 . . . . . Trap 4 | . . 4 . . . . . . . . . . . . Miscellaneous 142 | . . 8 . 12 2 11 26 10 9 . 34 30 . . Route ------- -11/Scrapyard -10/Materials -10/Mines (discovered 3 exits: *Mat x2 / *Exi) -10/Exiles (discovered 2 exits: *Min x2) -9/Mines (discovered 2 exits: *Mat x2) -8/Materials (discovered 2 exits: *Sto / Gar) -8/Garrison (discovered 3 exits: *Mat x3) -8/Materials (discovered 4 exits: *Fac x2 / *Sto / Gar) -8/Garrison (discovered 3 exits: *Fac x3) -7/Factory (discovered 6 exits: Fac x4 / *Low x2) -7/Waste -7/Factory (discovered 6 exits: *Fac x4 / *Low x2) -7/Lower Caves -7/Lower Caves (discovered 2 exits: *Fac / *Dat) -7/Data Miner (discovered 1 exit: *Pro) History --------- Turn | Location | Event 6 | -11/Scrapyard | Identified exit to Materials 6 | -11/Scrapyard | Discovered exit to Materials (range 15) 88 | -11/Scrapyard | Entered Materials 126 | -10/Materials | Identified exit to Mines 126 | -10/Materials | Discovered exit to Mines (range 14) 133 | -10/Materials | Entered Mines 140 | -10/Mines | YI-UF0 nonchalantly dropped a Grenade Launcher on the ground 180 | -10/Mines | Identified exit to Materials 180 | -10/Mines | Discovered exit to Materials (range 8) 192 | -10/Mines | Assembled infested the area 192 | -10/Mines | Learned location of Storage (-8) 197 | -10/Mines | Assisted by a Guerilla fighting off Assembled 281 | -10/Mines | Found a hidden stash of uninstalled traps 341 | -10/Mines | Build established: Hacker-Mutant 550 | -10/Mines | Found the Drone Emporium 550 | -10/Mines | Learned location of Zion (-6) 551 | -10/Mines | Found Prototype Device 552 | -10/Mines | Identified Sensor Drone Bay 563 | -10/Mines | Discovered exit to Materials (range 15) 923 | -10/Mines | Deemed a non-threat by the Exiles lab entrance 923 | -10/Mines | Identified exit to Exiles 923 | -10/Mines | Discovered exit to Exiles (range 5) 1087 | -10/Mines | Destroyed YI-UF0 1154 | -10/Mines | Entered Exiles 1182 | -10/Exiles | Met 8R-AWN 1200 | -10/Exiles | Met EX-HEX 1230 | -10/Exiles | Met EX-BIN 1241 | -10/Exiles | Reached level 2 1241 | -10/Exiles | Aligned with FarCom system 1242 | -10/Exiles | Given EX-Vault access code 1265 | -10/Exiles | Opened EX-Vault 1274 | -10/Exiles | Upgraded with Propulsion slot (x1) 1274 | -10/Exiles | Upgraded with Utility slot (x3) 1274 | -10/Exiles | Upgraded with Weapon slot (x1) 1275 | -10/Exiles | Found Field Lobotomy Kit 1278 | -10/Exiles | Found Deploy-a-Sentry 1284 | -10/Exiles | DAS Turret deployed 1284 | -10/Exiles | DAS Turret deployed 1285 | -10/Exiles | DAS Turret deployed 1285 | -10/Exiles | Found AWS/Gauss 1332 | -10/Exiles | Identified exit to Mines 1332 | -10/Exiles | Discovered exit to Mines (range 56) 1381 | -10/Exiles | Discovered exit to Mines (range 71) 1475 | -10/Exiles | Warned to stay clear of 0b10 Research branches 1535 | -10/Exiles | Met EX-DEC 1557 | -10/Exiles | Visited The Gauntlet 1719 | -10/Exiles | Left Exiles lab with AWS/Gauss 1719 | -10/Exiles | Entered Mines 1725 | -9/Mines | Met a Derelict bent on vengeance 1767 | -9/Mines | Identified exit to Materials 1767 | -9/Mines | Discovered exit to Materials (range 65) 1864 | -9/Mines | Received a Rocket Launcher from a helpful Derelict 1967 | -9/Mines | Met a Derelict who couldn't figure out how to use a Trap Extractor 2354 | -9/Mines | Assisted by bots powering up and referring to "LRC-V3" 2385 | -9/Mines | Entered Materials 2385 | -8/Materials | Accompanied by 3 allies 2387 | -8/Materials | Reached level 3 2387 | -8/Materials | Reached level 4 2387 | -8/Materials | Reached level 5 2387 | -8/Materials | Reached level 6 2387 | -8/Materials | Upgraded with Utility slot (x2) 2387 | -8/Materials | Upgraded with Weapon slot (x2) 2398 | -8/Materials | Identified exit to Storage 2398 | -8/Materials | Discovered exit to Storage (range 16) 2504 | -8/Materials | Reached level 7 2637 | -8/Materials | Identified exit to Garrison 2637 | -8/Materials | Entered Garrison 2637 | -8/Garrison | Accompanied by 2 allies 2656 | -8/Garrison | Triggered checkpoint 2754 | -8/Garrison | Build established: Hacker-Skirmisher 2756 | -8/Garrison | Triggered checkpoint 2756 | -8/Garrison | Triggered checkpoint 2798 | -8/Garrison | Reached level 8 2798 | -8/Garrison | Upgraded with Propulsion slot (x2) 2854 | -8/Garrison | Triggered checkpoint 2887 | -8/Garrison | Identified exit to Materials 2887 | -8/Garrison | Discovered exit to Materials (range 54) 2923 | -8/Garrison | Discovered exit to Materials (range 8) 2923 | -8/Garrison | Garrison Relay disabled 2932 | -8/Garrison | Destroyed 8 combat bots 2944 | -8/Garrison | Reached level 9 2954 | -8/Garrison | Garrison Relay disabled 3014 | -8/Garrison | Triggered checkpoint 3014 | -8/Garrison | Triggered checkpoint 3016 | -8/Garrison | Discovered exit to Materials (range 55) 3024 | -8/Garrison | Triggered checkpoint 3185 | -8/Garrison | Installed Relay Interface Framework 3192 | -8/Garrison | Triggered checkpoint 3239 | -8/Garrison | Garrison Relay disabled 3304 | -8/Garrison | Garrison Relay disabled 3387 | -8/Garrison | Reached level 10 3415 | -8/Garrison | Phase Generator disabled 3468 | -8/Garrison | Build established: Hacker-Scout 3648 | -8/Garrison | Entered Materials 3873 | -8/Materials | Identified exit to Factory 3873 | -8/Materials | Discovered exit to Factory (range 14) 3927 | -8/Materials | Reached level 11 4058 | -8/Materials | Discovered exit to Factory (range 4) 4294 | -8/Materials | Build established: Wizard-Scout 4354 | -8/Materials | Reached level 12 4385 | -8/Materials | Identified exit to Garrison 4725 | -8/Materials | Entered Garrison 4800 | -8/Garrison | Triggered checkpoint 4802 | -8/Garrison | Triggered checkpoint 4903 | -8/Garrison | Destroyed 13 combat bots 4915 | -8/Garrison | Discovered exit to Factory (range 26) 4954 | -8/Garrison | Triggered checkpoint 4954 | -8/Garrison | Garrison Relay disabled 5006 | -8/Garrison | Phase Generator disabled 5006 | -8/Garrison | Reached level 13 5051 | -8/Garrison | Triggered checkpoint 5055 | -8/Garrison | Discovered exit to Factory (range 21) 5074 | -8/Garrison | Triggered checkpoint 5080 | -8/Garrison | Discovered exit to Factory (range 53) 5097 | -8/Garrison | Garrison Relay disabled 5173 | -8/Garrison | Upgraded with Utility slot (x1) 5241 | -8/Garrison | Expanded RIF knowledge: Patrol Navigation 5321 | -8/Garrison | Garrison Relay disabled 5410 | -8/Garrison | Garrison Relay disabled 5412 | -8/Garrison | Triggered checkpoint 5467 | -8/Garrison | Entered Factory 5469 | -7/Factory | Reached level 14 5469 | -7/Factory | Upgraded with Utility slot (x1) 5641 | -7/Factory | Identified exit to Factory 5641 | -7/Factory | Identified exit to Lower Caves 5800 | -7/Factory | Build established: Wizard-Ninja 6214 | -7/Factory | Repaired Force Rifle 6447 | -7/Factory | Build established: Wizard-Scout 6522 | -7/Factory | Reached level 15 6633 | -7/Factory | Fabricated Cld. VTOL Module (x1) 6667 | -7/Factory | Fabricated Cld. VTOL Module (x1) 6701 | -7/Factory | Fabricated Cld. VTOL Module (x1) 6801 | -7/Factory | Build established: Wizard-Sprinter 7011 | -7/Factory | Fabricated Cld. VTOL Module (x1) 7038 | -7/Factory | Fabricated Adv. System Shield (x1) 7100 | -7/Factory | Manually triggered Chute Trap 7100 | -7/Factory | Sucked down chute 7100 | -7/Factory | Entered Waste 7108 | -7/Waste | Spotted C-40 Crusher 7115 | -7/Waste | EMP discharged 7115 | -7/Waste | Spotted C-40 Crusher 7121 | -7/Waste | Spotted C-40 Crusher 7122 | -7/Waste | Spotted C-40 Crusher 7123 | -7/Waste | Spotted C-40 Crusher 7123 | -7/Waste | Spotted C-40 Crusher 7135 | -7/Waste | Identified exit to Factory 7135 | -7/Waste | Discovered exit to Factory (range 14) 7138 | -7/Waste | Entered Factory 7195 | -7/Factory | 4 allies followed down the chute 7200 | -7/Factory | 2 allies followed down the chute 7219 | -7/Factory | Discovered exit to Factory (range 4) 7352 | -7/Factory | Fabricated System Backup Module (x2) 7377 | -7/Factory | Fabricated Imp. System Backup Module (x2) 7418 | -7/Factory | Reached level 16 7418 | -7/Factory | Upgraded with Power slot (x1) 7418 | -7/Factory | Upgraded with Propulsion slot (x1) 7465 | -7/Factory | Discovered exit to Factory (range 31) 8171 | -7/Factory | Repaired Hvy. Gauss Cannon 8346 | -7/Factory | Fabricated Imp. System Backup Module (x2) 8900 | -7/Factory | Reached level 17 8961 | -7/Factory | Core integrity fell below 50% 8987 | -7/Factory | Fabricated Imp. Cesium-ion Thruster? 9098 | -7/Factory | Entered Lower Caves 9325 | -7/Lower Caves | Encountered a Warlord checkpoint 9371 | -7/Lower Caves | Learned location of 1 exit from Factory 9371 | -7/Lower Caves | Learned Research stockpile data 9371 | -7/Lower Caves | Learned Extension stockpile data 9372 | -7/Lower Caves | Attracted the attention of an 0b10 base 9378 | -7/Lower Caves | Identified exit to Lower Caves 9378 | -7/Lower Caves | Discovered exit to Lower Caves (range 2) 9520 | -7/Lower Caves | Spotted B-75 Beast 9815 | -7/Lower Caves | Entered another Lower Caves area 9818 | -7/Lower Caves | Spotted B-75 Beast 9827 | -7/Lower Caves | Discovered exit to Factory (range 8) 9901 | -7/Lower Caves | Encountered a Warlord checkpoint 9946 | -7/Lower Caves | Identified exit to Data Miner 9946 | -7/Lower Caves | Discovered exit to Data Miner (range 4) 9947 | -7/Lower Caves | Entered Data Miner 9947 | -7/Data Miner | Identified exit to Proximity Caves 9947 | -7/Data Miner | Discovered exit to Proximity Caves (range 6) 9951 | -7/Data Miner | Met Data Miner 9957 | -7/Data Miner | Learned location of Section 7 (-2) 9957 | -7/Data Miner | Acquired the access code to Warlord's prototype stash 9962 | -7/Data Miner | Received God Mode back door access code from Data Miner 9968 | -7/Data Miner | Interfaced with the Data Conduit 9989 | -7/Data Miner | Core integrity fell below 20% 9996 | -7/Data Miner | Destroyed by Enhanced Grunt with Neutron Cannon Last Messages --------------- the area. Data Miner: I've just received further instructions. God Mode is nearly complete and we think you might be able to put it to better use than Warlord, so if you see an opportunity, hack it and enter \\CNN7 to gain control via the back door I've installed. Now off with you. 09965_ Sneak attack on Data Miner. 09965_ Destroyed Gravmag Array. 09965_ Data Miner disappears through a trap door. 09968_ Interfacing with system... Downloaded 115 analysis records. Downloaded 701 prototype IDs. Downloaded central machine database. Downloaded 12 destinations. Downloaded encryption format records. Connection remotely terminated. [Achievement: Unlimited Data] 09970_ AWS/Gauss suddenly breaks down. 09972_ Destroyed Adv. Heat Sink. 09992_ Enhanced Grunt destroyed. Map ----- +----------------------------------------------------+ | | | | | | | | | | | | | | | | | | | | | | | | | | | | | | | | | | | ????????????????????????????????????????????????? | | ????????????????????????????????????????????????? | | ????????????????????????????????????????????????? | | ????????????????????????????????????????????????? | | ????????????????????????#####???????####????????? | | ????################????#;;;###???### #????????? | | ???#"""""""""""""""###### ; ; #??## #????????? | | ??#""""""""" """"""" ; ; ; # ## > ##????????? | | ??"""""""""" @ ######???? | | ??""""""" *%! #???? | | ??""""""" gg g #???? | | ?#"""""" #???? | | ??""""""" ##???? | | ??""""""" """"""""""""""""#####????? | | ??"""""""" """###############????????? | | ??#""""""" """""###??????????????????????? | | ???#"""""""" "#####????????????????????????? | | ????#######"## "#????????????????????????????? | | ??????????#"### "#????????????????????????????? | | ??????????#"### "#????????????????????????????? | | ??????????#"## "#????????????????????????????? | | ??????????#"## "#????????????????????????????? | | ????????????# "#????????????????????????????? | | ????????????### "#????????????????????????????? | | ??????????????# "##???????????????????????????? | | ?????????????## ""#???????????????????????????? | | ??????????#?## ""#???????????????????????????? | | ????????"##"#"X ""#???????????????????????????? | | ????????"""""" "#####???????????????????????? | | ????????#""""" X"""""#???????????????????????? | | ????????###"#"X "##"##???????????????????????? | | ??????????#"## X""""#????????????????????????? | | ?????????????## "##"#????????????????????????? | +----------------------------------------------------+ Best States ------------- Heat Dissipation 43 Energy Generation 36 Energy Capacity 300 Matter Stores 300 Matter Capacity 300 Sight Range 25 Terrain Scan Range 24 Terrain Scan Density 410 Jamming Range 8 EM Shielding 2 Resistance: KI 35 Resistance: TH 35 Resistance: EX 35 Resistance: EM 35 Resistance: I 35 Resistance: S 35 Resistance: P 35 Evasion (%) 71 Targeting Accuracy 5 Launcher Accuracy 20 Armor Integrity Analysis 33 Offensive Hacking 50 Defensive Hacking 50 Relay Coupler Types 164 Relay Coupler Value 2 Item Schematics ----------------- Enh. Autogun | -8/Materials | Scanalyzed Missile Launcher | -8/Materials | Scanalyzed Hvy. EM Shotgun | -8/Materials | Extracted Hacking Suite | -8/Materials | Hacked System Shield | -8/Materials | Hacked Cesium-ion Thruster | -8/Materials | Hacked Cld. Ion Engine | -8/Materials | Hacked Maneuvering Thrusters | -8/Materials | Hacked Adv. Sensor Array | -8/Materials | Hacked Adv. Terrain Scanner | -8/Materials | Hacked Adv. Targeting Computer | -8/Materials | Hacked Adv. Signal Interpreter | -8/Materials | Hacked Adv. Beam Cannon | -8/Materials | Hacked Adv. Treads | -8/Materials | Hacked Adv. Weight Redist. System | -8/Materials | Hacked Adv. Visual Processing Unit | -8/Materials | Hacked Lgt. Armor Plating | -8/Materials | Hacked Lgt. Assault Rifle | -8/Materials | Hacked Lgt. Cannon | -8/Materials | Hacked Lgt. Deuterium Engine | -8/Materials | Hacked Lgt. EM Pulse Cannon | -8/Materials | Hacked Lgt. Ion Engine | -8/Materials | Hacked Lgt. Nuclear Core | -8/Materials | Hacked Lgt. Treads | -8/Materials | Hacked Mni. Grenade Launcher | -8/Materials | Hacked Mining Laser | -8/Materials | Hacked Mining Claw | -8/Materials | Hacked Adv. Reclamation Unit | -7/Factory | Hacked Flak Gun | -7/Factory | Hacked KE Penetrator | -7/Factory | Hacked Arm. Medium Treads | -7/Factory | Hacked Med. Treads | -7/Factory | Hacked Linear Gravjet | -7/Factory | Hacked Matter Compressor | -7/Factory | Hacked Chainsword | -7/Factory | Hacked Imp. Plasma Cutter | -7/Factory | Hacked Greatsword | -7/Factory | Hacked Arm. Leg | -7/Factory | Hacked Cld. VTOL Module | -7/Factory | Hacked Adv. System Shield | -7/Factory | Hacked Cloaking Device | -7/Factory | Hacked Imp. Salvage Targeting Computer | -7/Factory | Hacked Cld. Deuterium Engine | -7/Factory | Hacked Recalibrator | -7/Factory | Hacked System Backup Module | -7/Factory | Hacked Cld. Particle Cannon | -7/Factory | Hacked Hvy. Missile Launcher | -7/Factory | Scanalyzed Neutrino Core | -7/Factory | Hacked Hpw. Shock Rifle | -7/Factory | Hacked Variable Charge Gun | -7/Factory | Hacked Lrn. Terrain Scanner | -7/Factory | Scanalyzed Enh. Optical Array | -7/Factory | Extracted Lrg. Matter Pod | -7/Factory | Extracted Hvy. Particle Cannon | -7/Factory | Extracted Imp. Medium Armor Plating | -7/Factory | Extracted Adv. Hacking Suite | -7/Factory | Hacked Imp. System Backup Module | -7/Factory | Hacked Imp. Hacking Suite | -7/Factory | Hacked Hvy. Gauss Cannon | -7/Factory | Scanalyzed Imp. Melee Analysis Suite | -7/Factory | Extracted Lyr. Light Armor Plating | -7/Factory | Extracted Plasma Cutter | -7/Factory | Extracted Imp. Terrain Scan Processor | -7/Factory | Extracted Cld. Airjet | -7/Factory | Extracted Imp. Arc Projector | -7/Factory | Hacked Imp. Component Analysis Suite | -7/Factory | Hacked Imp. Focal Shield | -7/Factory | Hacked Remote Datajack | -7/Factory | Scanalyzed Minigun | -7/Factory | Extracted Imp. Cooling System | -7/Factory | Extracted Adv. Cooling System | -7/Factory | Hacked Phase Cannon | -7/Factory | Hacked Force Rifle | -7/Factory | Hacked Great Axe | -7/Factory | Hacked Adv. Assault Cannon | -7/Factory | Hacked Adv. Beam Rifle | -7/Factory | Hacked Adv. EMP Blaster | -7/Factory | Hacked Adv. Terrain Scan Processor | -7/Factory | Hacked Transmission Jammer | -7/Factory | Hacked Prc. Beam Rifle | -7/Factory | Hacked Imp. Cesium-ion Thruster | -7/Factory | Scanalyzed Lgt. Angular Momentum Engine | -7/Factory | Scanalyzed Com. Matter Pod | -7/Factory | Extracted Shield Generator | -7/Factory | Extracted Med. Matter Pod | -7/Factory | Extracted Mni. Assault Cannon | -7/Factory | Scanalyzed Disposable Heat Sink | -7/Factory | Extracted Gauss Rifle | -7/Factory | Hacked Gyrokinetic Inverter | -7/Factory | Hacked Antigrav System | -7/Factory | Hacked Gatling Laser | -7/Factory | Hacked Gauss Cannon | -7/Factory | Hacked Gravmag System | -7/Factory | Hacked Great Maul | -7/Factory | Hacked Grenade Launcher | -7/Factory | Hacked Mic. Nuclear Core | -7/Factory | Hacked Microactuators | -7/Factory | Hacked Transport Network Coupler | -7/Factory | Hacked Trap Extractor | -7/Factory | Hacked Tractor Beam | -7/Factory | Hacked Target Analyzer | -7/Factory | Hacked Targeting Computer | -7/Factory | Hacked Core Analyzer | -7/Factory | Hacked Powered Hammer | -7/Factory | Hacked Imp. Thermal Converter | -7/Factory | Hacked Imp. Integration Mediator | -7/Factory | Hacked Imp. Shock Absorption System | -7/Factory | Hacked Plasma Cannon | -7/Factory | Hacked Combat Drone Bay | -7/Data Miner | Free Lgt. Regenerative Plating | -7/Data Miner | Free Exp. Flexi-carbon Leg | -7/Data Miner | Free Exp. Cesium-ion Thruster | -7/Data Miner | Free Exp. Terrain Scanner | -7/Data Miner | Free Tactical Coordination Suite | -7/Data Miner | Free Robot Schematics ------------------ O-24 Administrator | -8/Materials | Hacked P-60 Hacker | -7/Factory | Hacked S-27 Virus | -7/Factory | Hacked B-48 Gladiator | -7/Factory | Hacked B-36 Bruiser | -7/Factory | Hacked S-10 Pest | -7/Factory | Hacked O-16 Technician | -7/Factory | Hacked Y-54 Guardian | -7/Factory | Hacked G-50 Soldier | -7/Factory | Hacked G-47 Trooper | -7/Factory | Hacked H-55 Commando | -7/Factory | Hacked G-34 Mercenary | -7/Factory | Hacked R-06 Scavenger | -7/Factory | Hacked K-01 Serf | -7/Factory | Hacked T-07 Excavator | -7/Factory | Hacked Y-45 Defender | -7/Factory | Hacked L-41 Fighter | -7/Data Miner | Free I-36 Angel | -7/Data Miner | Free X-72 Disruptor | -7/Data Miner | Free I-47 Archangel | -7/Data Miner | Free Fabricated ------------ Cld. VTOL Module | x1 | -7/Factory Cld. VTOL Module | x1 | -7/Factory Cld. VTOL Module | x1 | -7/Factory Cld. VTOL Module | x1 | -7/Factory Adv. System Shield | x1 | -7/Factory System Backup Module | x2 | -7/Factory Imp. System Backup Module | x2 | -7/Factory Imp. System Backup Module | x2 | -7/Factory Imp. Cesium-ion Thruster | x1 | -7/Factory Alien Tech Used ----------------- None Achievements -------------- No Signal Short-term Sacrifices Unlimited Data Challenges ------------ None RPGLIKE | -11 -10 -10 -10 -9 -8 -8 -8 -8 -7 -7 -7 -7 -7 -7 --------- Run | Scr Mat Min Exi Min Mat Gar Mat Gar Fac Was Fac Low Low Dat Levels Raised 16 | . . . 1 . 5 3 2 1 2 . 2 . . . XP Earned 31357 | 6000 100 1080 350 1262 6245 5105 2638 1859 3116 97 2518 341 135 511 XP Spent 28400 | . . 1190 6300 . 5960 2800 4450 2000 3800 . 1900 . . . Upgrades 42 | . . 5 12 . 8 5 7 1 2 . 2 . . . Power Slot 1 | . . . . . . . . . . . 1 . . . Propulsion Slot 4 | . . . 1 . . 2 . . . . 1 . . . Utility Slot 7 | . . . 3 . 2 . . 1 1 . . . . . Weapon Slot 3 | . . . 1 . 2 . . . . . . . . . Heat Dissipation 3 | . . . 1 . 2 . . . . . . . . . Energy Generation 1 | . . 1 . . . . . . . . . . . . Mass Support 2 | . . . 2 . . . . . . . . . . . Inventory Capacity 6 | . . 2 2 . . . 1 . 1 . . . . . Sight Range 3 | . . . . . . 2 1 . . . . . . . Terrain Scan Density 4 | . . 2 . . . . 2 . . . . . . . Ranged Accuracy 2 | . . . . . 1 1 . . . . . . . . Hack Attack % 2 | . . . 1 . 1 . . . . . . . . . Hack Defense % 4 | . . . 1 . . . 3 . . . . . . . Protomatter Created 2107 | . . 47 . 80 46 195 661 321 168 . 403 186 . . Integrity Restored 2791 | . . 174 . 239 42 184 482 129 202 . 734 605 . . Core 2256 | . . 174 . 236 . 142 381 89 161 . 644 429 . . Parts 535 | . . . . 3 42 42 101 40 41 . 90 176 . . Protomatter Decayed 1662 | . . 24 . . 84 171 492 281 154 . 287 169 . . Game ------ Seed MappingScatterSlayer Manual? 0 Play Time 06:18:00 Cumulative 101.7 hours Start 2021.05.26 @ 06:00:53 End 2021.05.26 @ 13:28:22 Sessions 1 Manual Loads 0 Difficulty Explorer Special Mode Winter2019/RPGLIKE Game No. 26 Rogue 12 Adventurer 0 Explorer 14 Win Type - Total 1 Types 0/0/1/0/0/0/0/0/0 Lore% 55 Gallery% 68 Achievement% 57 Wizard Run 0 Options --------- ASCII 0 Keyboard 0 Movement Mouse Keybinds 0 Fullscreen 2 Font 24/Proggy Map View 76x50 Tactical HUD 1 Map Filters NONE Filters NONE Steam 1 RUN: 741de6d0-d31c-41fb-94e4-6dfc44d3da45